[Event "*** Titled Tuesday Blitz"]
[Site "Chess.com"]
[Date "2020.12.01"]
[Round "1"]
[White "MathiasWomacka"]
[Black "RamyresCoelho"]
[Result "1-0"]
[WhiteElo "2487"]
[BlackElo "2097"]
[TimeControl "180+1"]
[EndTime "10:08:03 PST"]
[Termination "MathiasWomacka won by checkmate"]

1. e4 {[%clk 0:02:55.2]} 1... c5 {[%clk 0:02:59.9]} 2. Nf3 {[%clk 0:02:54.6]}
2... d6 {[%clk 0:03:00.1]} 3. d4 {[%clk 0:02:55]} 3... cxd4 {[%clk 0:03:01]} 4.
Nxd4 {[%clk 0:02:55.6]} 4... Nf6 {[%clk 0:03:01.5]} 5. Nc3 {[%clk 0:02:56.1]}
5... a6 {[%clk 0:03:02]} 6. Be2 {[%clk 0:02:56]} 6... e6 {[%clk 0:03:02.4]} 7.
O-O {[%clk 0:02:55.1]} 7... Be7 {[%clk 0:03:03]} 8. f4 {[%clk 0:02:54.9]} 8...
O-O {[%clk 0:03:03.1]} 9. Kh1 {[%clk 0:02:54.9]} 9... b5 {[%clk 0:03:02]} 10.
Bf3 {[%clk 0:02:54.1]} 10... Bb7 {[%clk 0:03:02.5]} 11. e5 {[%clk 0:02:54]}
11... Bxf3 {[%clk 0:02:52.1]} 12. Qxf3 {[%clk 0:02:52.8]} 12... dxe5 {[%clk
0:02:50.6]} 13. fxe5 {[%clk 0:02:45.3]} 13... Nd5 {[%clk 0:02:42.6]} 14. Nxd5
{[%clk 0:02:21]} 14... Qxd5 {[%clk 0:02:42.2]} 15. Qxd5 {[%clk 0:02:17]} 15...
exd5 {[%clk 0:02:43.1]} 16. Nf5 {[%clk 0:02:17.1]} 16... Bc5 {[%clk 0:02:39.4]}
17. Bf4 {[%clk 0:02:15.1]} 17... Nc6 {[%clk 0:02:36]} 18. Rad1 {[%clk
0:02:14.1]} 18... d4 {[%clk 0:02:30.4]} 19. Nd6 {[%clk 0:01:52.6]} 19... Bxd6
{[%clk 0:02:07.9]} 20. exd6 {[%clk 0:01:53.5]} 20... Rad8 {[%clk 0:02:04.2]} 21.
Rfe1 {[%clk 0:01:51.6]} 21... Rd7 {[%clk 0:02:02.9]} 22. g4 {[%clk 0:01:24.8]}
22... h6 {[%clk 0:01:54.2]} 23. Kg2 {[%clk 0:01:23.9]} 23... Rfd8 {[%clk
0:01:44.7]} 24. Re4 {[%clk 0:01:16.8]} 24... Rxd6 {[%clk 0:01:39.7]} 25. Bxd6
{[%clk 0:01:15.2]} 25... Rxd6 {[%clk 0:01:40.6]} 26. Re8+ {[%clk 0:01:08.8]}
26... Kh7 {[%clk 0:01:40.3]} 27. Ra8 {[%clk 0:01:02.3]} 27... Ne5 {[%clk
0:01:39.5]} 28. h3 {[%clk 0:01:00.3]} 28... Nc4 {[%clk 0:01:38.7]} 29. Re1
{[%clk 0:00:49.6]} 29... Ne3+ {[%clk 0:01:33.2]} 30. Kf3 {[%clk 0:00:49.3]}
30... Nxc2 {[%clk 0:01:33.4]} 31. Rd1 {[%clk 0:00:47.9]} 31... d3 {[%clk
0:01:31.8]} 32. Rd2 {[%clk 0:00:44.6]} 32... Nb4 {[%clk 0:01:18.4]} 33. a3
{[%clk 0:00:42.8]} 33... Nc2 {[%clk 0:01:13.7]} 34. Ke4 {[%clk 0:00:38.4]} 34...
Ne1 {[%clk 0:01:06.2]} 35. Ra7 {[%clk 0:00:31.7]} 35... Kg6 {[%clk 0:01:04.7]}
36. Ke3 {[%clk 0:00:26.1]} 36... Re6+ {[%clk 0:01:02]} 37. Kf2 {[%clk
0:00:25.2]} 37... f6 {[%clk 0:00:28.7]} 38. Rd1 {[%clk 0:00:23.7]} 38... Re2+
{[%clk 0:00:26.4]} 39. Kf1 {[%clk 0:00:21]} 39... Nf3 {[%clk 0:00:17.4]} 40.
Rxd3 {[%clk 0:00:20.1]} 40... Rxb2 {[%clk 0:00:06.5]} 41. Rxf3 {[%clk
0:00:19.8]} 41... Rb1+ {[%clk 0:00:03.5]} 42. Kg2 {[%clk 0:00:19.1]} 42... Rb2+
{[%clk 0:00:04.4]} 43. Kg3 {[%clk 0:00:19.3]} 43... b4 {[%clk 0:00:03.9]} 44.
axb4 {[%clk 0:00:18]} 44... Rxb4 {[%clk 0:00:04.8]} 45. Rxa6 {[%clk 0:00:17.1]}
45... Re4 {[%clk 0:00:05.7]} 46. Rd3 {[%clk 0:00:16.7]} 46... Re7 {[%clk
0:00:06]} 47. Rad6 {[%clk 0:00:15.6]} 47... Kg5 {[%clk 0:00:05.8]} 48. Rd7
{[%clk 0:00:14.3]} 48... Rxd7 {[%clk 0:00:03]} 49. Rxd7 {[%clk 0:00:13.6]} 49...
g6 {[%clk 0:00:03.4]} 50. h4# {[%clk 0:00:13.1]} 1-0

[Event "*** Titled Tuesday Blitz"]
[Site "Chess.com"]
[Date "2020.12.01"]
[Round "1"]
[White "albi1999"]
[Black "Cambek64"]
[Result "1-0"]
[WhiteElo "2577"]
[BlackElo "2267"]
[TimeControl "180+1"]
[EndTime "10:08:07 PST"]
[Termination "albi1999 won by checkmate"]

1. Nf3 {[%clk 0:02:54.1]} 1... d5 {[%clk 0:02:59.4]} 2. d4 {[%clk 0:02:51.8]}
2... Bf5 {[%clk 0:02:58.3]} 3. c4 {[%clk 0:02:48.1]} 3... e6 {[%clk 0:02:58.3]}
4. Nc3 {[%clk 0:02:46.8]} 4... c6 {[%clk 0:02:58.7]} 5. Qb3 {[%clk 0:02:39]}
5... Qb6 {[%clk 0:02:59.1]} 6. c5 {[%clk 0:02:34.4]} 6... Qc7 {[%clk 0:02:59.6]}
7. Bf4 {[%clk 0:02:32.8]} 7... Qc8 {[%clk 0:03:00.2]} 8. e3 {[%clk 0:02:29.3]}
8... h6 {[%clk 0:02:59.3]} 9. Qd1 {[%clk 0:02:28]} 9... Nf6 {[%clk 0:02:57.7]}
10. b4 {[%clk 0:02:28.6]} 10... a6 {[%clk 0:02:56.3]} 11. Bd3 {[%clk 0:02:26]}
11... Bxd3 {[%clk 0:02:53.9]} 12. Qxd3 {[%clk 0:02:26.9]} 12... Be7 {[%clk
0:02:54]} 13. O-O {[%clk 0:02:16.3]} 13... Nbd7 {[%clk 0:02:54.2]} 14. h3 {[%clk
0:02:15.7]} 14... O-O {[%clk 0:02:53.4]} 15. a4 {[%clk 0:02:15.4]} 15... Re8
{[%clk 0:02:52.8]} 16. b5 {[%clk 0:02:13.5]} 16... a5 {[%clk 0:02:45.6]} 17.
Rab1 {[%clk 0:02:05.2]} 17... Bd8 {[%clk 0:02:45.5]} 18. bxc6 {[%clk 0:01:54.3]}
18... bxc6 {[%clk 0:02:44.3]} 19. Rb3 {[%clk 0:01:55.2]} 19... Bc7 {[%clk
0:02:43.8]} 20. Rfb1 {[%clk 0:01:55.7]} 20... Bxf4 {[%clk 0:02:39.6]} 21. exf4
{[%clk 0:01:56.6]} 21... Rb8 {[%clk 0:02:37.1]} 22. Ne5 {[%clk 0:01:43.9]} 22...
Rxb3 {[%clk 0:02:32.5]} 23. Rxb3 {[%clk 0:01:42.1]} 23... Nxe5 {[%clk
0:02:32.5]} 24. fxe5 {[%clk 0:01:43]} 24... Nd7 {[%clk 0:02:32.2]} 25. Nb1
{[%clk 0:01:38]} 25... Qa8 {[%clk 0:02:30.4]} 26. Nd2 {[%clk 0:01:35.6]} 26...
Rb8 {[%clk 0:02:30.8]} 27. f3 {[%clk 0:01:29.2]} 27... Rb7 {[%clk 0:02:25.2]}
28. Qb1 {[%clk 0:01:27.7]} 28... Rxb3 {[%clk 0:02:22]} 29. Qxb3 {[%clk
0:01:28.6]} 29... Qa6 {[%clk 0:02:21.6]} 30. Kf2 {[%clk 0:01:26.1]} 30... g6
{[%clk 0:02:05.8]} 31. f4 {[%clk 0:01:25]} 31... Kg7 {[%clk 0:02:03.2]} 32. Ke3
{[%clk 0:01:17.9]} 32... Kf8 {[%clk 0:02:00.2]} 33. g4 {[%clk 0:01:17.6]} 33...
Ke7 {[%clk 0:01:50.6]} 34. h4 {[%clk 0:01:16.8]} 34... Qa8 {[%clk 0:01:29.9]}
35. Qb1 {[%clk 0:01:13.5]} 35... h5 {[%clk 0:01:03]} 36. gxh5 {[%clk 0:01:13.1]}
36... gxh5 {[%clk 0:01:01.6]} 37. f5 {[%clk 0:01:13.5]} 37... exf5 {[%clk
0:00:57.4]} 38. Qxf5 {[%clk 0:01:14.4]} 38... Qb7 {[%clk 0:00:56.6]} 39. Qg5+
{[%clk 0:01:13.3]} 39... Ke8 {[%clk 0:00:55.5]} 40. e6 {[%clk 0:01:01.2]} 40...
fxe6 {[%clk 0:00:53.4]} 41. Qxh5+ {[%clk 0:00:59.2]} 41... Kd8 {[%clk
0:00:51.5]} 42. Qd1 {[%clk 0:00:52.1]} 42... e5 {[%clk 0:00:46.5]} 43. Nf3
{[%clk 0:00:49]} 43... e4 {[%clk 0:00:41.2]} 44. Ng5 {[%clk 0:00:47.1]} 44...
Qb4 {[%clk 0:00:38.5]} 45. h5 {[%clk 0:00:42.4]} 45... Qc3+ {[%clk 0:00:37.6]}
46. Kf4 {[%clk 0:00:39.6]} 46... Nf8 {[%clk 0:00:23.1]} 47. h6 {[%clk
0:00:36.5]} 47... e3 {[%clk 0:00:17.3]} 48. Ke5 {[%clk 0:00:22.6]} 48... Qd2
{[%clk 0:00:06.4]} 49. Qf3 {[%clk 0:00:18.5]} 49... e2 {[%clk 0:00:06.3]} 50.
Qxf8+ {[%clk 0:00:17.7]} 50... Kc7 {[%clk 0:00:06.3]} 51. Ne6+ {[%clk
0:00:17.2]} 51... Kb7 {[%clk 0:00:03.7]} 52. Qe7+ {[%clk 0:00:17]} 52... Kb8
{[%clk 0:00:02.4]} 53. Qd8+ {[%clk 0:00:17.1]} 53... Kb7 {[%clk 0:00:01.7]} 54.
Qb6+ {[%clk 0:00:17.3]} 54... Ka8 {[%clk 0:00:01.1]} 55. Nc7# {[%clk 0:00:17.1]}
1-0

[Event "*** Titled Tuesday Blitz"]
[Site "Chess.com"]
[Date "2020.12.01"]
[Round "1"]
[White "fmshawnrl123"]
[Black "anon481216"]
[Result "1-0"]
[WhiteElo "2803"]
[BlackElo "2399"]
[TimeControl "180+1"]
[EndTime "10:08:11 PST"]
[Termination "fmshawnrl123 won on time"]

1. c4 {[%clk 0:02:53.8]} 1... e5 {[%clk 0:02:57.4]} 2. g3 {[%clk 0:02:53.2]}
2... Nf6 {[%clk 0:02:57]} 3. Bg2 {[%clk 0:02:52.9]} 3... d5 {[%clk 0:02:57.3]}
4. cxd5 {[%clk 0:02:52.2]} 4... Nxd5 {[%clk 0:02:57.8]} 5. Nf3 {[%clk
0:02:51.8]} 5... Nc6 {[%clk 0:02:57.4]} 6. O-O {[%clk 0:02:51.5]} 6... Be7
{[%clk 0:02:57.3]} 7. d3 {[%clk 0:02:48.1]} 7... O-O {[%clk 0:02:56.3]} 8. Nc3
{[%clk 0:02:48.7]} 8... Nb6 {[%clk 0:02:56.3]} 9. Be3 {[%clk 0:02:48]} 9... Be6
{[%clk 0:02:55.5]} 10. Rc1 {[%clk 0:02:47.7]} 10... f6 {[%clk 0:02:54.3]} 11. a3
{[%clk 0:02:47.4]} 11... Qe8 {[%clk 0:02:49]} 12. Ne4 {[%clk 0:02:34.2]} 12...
Rd8 {[%clk 0:02:41.3]} 13. b4 {[%clk 0:02:23.8]} 13... Nd5 {[%clk 0:02:33.5]}
14. Bc5 {[%clk 0:02:23]} 14... Bd6 {[%clk 0:02:31.9]} 15. b5 {[%clk 0:02:17.7]}
15... Na5 {[%clk 0:02:31.3]} 16. Nxd6 {[%clk 0:01:58.3]} 16... cxd6 {[%clk
0:02:31]} 17. Bxa7 {[%clk 0:01:57.2]} 17... Qxb5 {[%clk 0:02:29.6]} 18. e4
{[%clk 0:01:50.5]} 18... Ne7 {[%clk 0:02:23.1]} 19. Rb1 {[%clk 0:01:44.2]} 19...
Qa6 {[%clk 0:02:17]} 20. Bb6 {[%clk 0:01:40.7]} 20... Rc8 {[%clk 0:02:14.6]} 21.
Bxa5 {[%clk 0:01:38.2]} 21... Qxa5 {[%clk 0:02:14]} 22. Rxb7 {[%clk 0:01:38.7]}
22... Nc6 {[%clk 0:02:07.9]} 23. Qa1 {[%clk 0:01:08.2]} 23... Ra8 {[%clk
0:02:06.8]} 24. Rc1 {[%clk 0:01:01.9]} 24... Rfc8 {[%clk 0:02:05.2]} 25. h4
{[%clk 0:00:33.3]} 25... Qxa3 {[%clk 0:02:00.6]} 26. Qxa3 {[%clk 0:00:34.2]}
26... Rxa3 {[%clk 0:02:00.4]} 27. Rb6 {[%clk 0:00:23.9]} 27... Bd7 {[%clk
0:01:57.7]} 28. Bf1 {[%clk 0:00:18.6]} 28... Kf8 {[%clk 0:01:44.7]} 29. Rb7
{[%clk 0:00:17.8]} 29... Ra7 {[%clk 0:01:27.3]} 30. Rxd7 {[%clk 0:00:05.4]}
30... Rxd7 {[%clk 0:01:25.3]} 31. Bh3 {[%clk 0:00:06]} 31... Rdc7 {[%clk
0:01:21.9]} 32. Bxc8 {[%clk 0:00:06.1]} 32... Rxc8 {[%clk 0:01:22.2]} 33. d4
{[%clk 0:00:06.8]} 33... Ke7 {[%clk 0:01:05.8]} 34. d5 {[%clk 0:00:05.8]} 34...
Na7 {[%clk 0:01:05.6]} 35. Rb1 {[%clk 0:00:05.9]} 35... Rc7 {[%clk 0:01:05.1]}
36. h5 {[%clk 0:00:06.1]} 36... g6 {[%clk 0:00:51.3]} 37. hxg6 {[%clk 0:00:07]}
37... hxg6 {[%clk 0:00:51.4]} 38. Kg2 {[%clk 0:00:07.2]} 38... Kf7 {[%clk
0:00:47.6]} 39. Rh1 {[%clk 0:00:06.7]} 39... Kg7 {[%clk 0:00:45.6]} 40. Rb1
{[%clk 0:00:07]} 40... Nc8 {[%clk 0:00:42.9]} 41. Rb8 {[%clk 0:00:06.2]} 41...
Ne7 {[%clk 0:00:42.5]} 42. Rd8 {[%clk 0:00:04.9]} 42... Nc8 {[%clk 0:00:35]} 43.
Nh4 {[%clk 0:00:04.7]} 43... Kf7 {[%clk 0:00:27]} 44. Nf3 {[%clk 0:00:04.4]}
44... Kg7 {[%clk 0:00:16.9]} 45. Nd2 {[%clk 0:00:04.3]} 45... Kf7 {[%clk
0:00:15.4]} 46. Nb3 {[%clk 0:00:04.2]} 46... Ke7 {[%clk 0:00:09.6]} 47. Rh8
{[%clk 0:00:04.5]} 47... f5 {[%clk 0:00:04.5]} 48. exf5 {[%clk 0:00:04.2]} 48...
gxf5 {[%clk 0:00:04.7]} 49. Na5 {[%clk 0:00:04.8]} 49... Kf6 {[%clk 0:00:03.3]}
50. Nc6 {[%clk 0:00:04.4]} 50... Ne7 {[%clk 0:00:01.4]} 51. Rh6+ {[%clk
0:00:04.6]} 51... Ng6 {[%clk 0:00:01.4]} 52. Rh5 {[%clk 0:00:02.4]} 52... e4
{[%clk 0:00:02.3]} 53. Rh1 {[%clk 0:00:02.3]} 53... Ne5 {[%clk 0:00:02.4]} 54.
Nd4 {[%clk 0:00:02.6]} 54... Ng6 {[%clk 0:00:02.5]} 55. Ne6 {[%clk 0:00:03.5]}
55... Rc2 {[%clk 0:00:02.2]} 56. Rh6 {[%clk 0:00:03.8]} 1-0

[Event "*** Titled Tuesday Blitz"]
[Site "Chess.com"]
[Date "2020.12.01"]
[Round "1"]
[White "SlavenPastar"]
[Black "zala02"]
[Result "1-0"]
[WhiteElo "2509"]
[BlackElo "2157"]
[TimeControl "180+1"]
[EndTime "10:08:11 PST"]
[Termination "SlavenPastar won by resignation"]

1. d4 {[%clk 0:02:57.6]} 1... Nf6 {[%clk 0:02:59.4]} 2. c4 {[%clk 0:02:53.7]}
2... e6 {[%clk 0:02:58.1]} 3. Nf3 {[%clk 0:02:54.3]} 3... d5 {[%clk 0:02:58]} 4.
Nc3 {[%clk 0:02:53.2]} 4... Bb4 {[%clk 0:02:57.9]} 5. Bd2 {[%clk 0:02:51]} 5...
O-O {[%clk 0:02:53.9]} 6. e3 {[%clk 0:02:46.2]} 6... b6 {[%clk 0:02:53.8]} 7.
cxd5 {[%clk 0:02:41.8]} 7... exd5 {[%clk 0:02:54.7]} 8. Be2 {[%clk 0:02:40.7]}
8... Bb7 {[%clk 0:02:51.3]} 9. O-O {[%clk 0:02:38.9]} 9... Re8 {[%clk 0:02:49]}
10. Rc1 {[%clk 0:02:37.1]} 10... Bf8 {[%clk 0:02:45.6]} 11. Ne5 {[%clk
0:02:33.4]} 11... c5 {[%clk 0:02:44.6]} 12. Bf3 {[%clk 0:02:28]} 12... Nc6
{[%clk 0:02:39.6]} 13. Nxc6 {[%clk 0:02:20.4]} 13... Bxc6 {[%clk 0:02:40.5]} 14.
dxc5 {[%clk 0:02:12.3]} 14... bxc5 {[%clk 0:02:41.4]} 15. Na4 {[%clk 0:02:09.3]}
15... Rc8 {[%clk 0:02:19.6]} 16. Re1 {[%clk 0:01:16.5]} 16... Ba8 {[%clk
0:01:41.2]} 17. b3 {[%clk 0:01:11.8]} 17... Ne4 {[%clk 0:01:41]} 18. Bc3 {[%clk
0:01:05.3]} 18... f5 {[%clk 0:01:31]} 19. Bb2 {[%clk 0:01:01.4]} 19... Bd6
{[%clk 0:01:20.6]} 20. g3 {[%clk 0:00:41.4]} 20... Qe7 {[%clk 0:00:40.7]} 21.
Nc3 {[%clk 0:00:29.7]} 21... Qe6 {[%clk 0:00:40.8]} 22. Be2 {[%clk 0:00:18.9]}
22... Kh8 {[%clk 0:00:38.7]} 23. Bf1 {[%clk 0:00:12.2]} 23... Be5 {[%clk
0:00:38.7]} 24. Qc2 {[%clk 0:00:10.8]} 24... d4 {[%clk 0:00:28.8]} 25. Na4
{[%clk 0:00:08.4]} 25... dxe3 {[%clk 0:00:19.1]} 26. Rxe3 {[%clk 0:00:07.2]}
26... Bd4 {[%clk 0:00:14]} 27. Re2 {[%clk 0:00:06.9]} 27... Qd5 {[%clk
0:00:12.7]} 28. Bg2 {[%clk 0:00:06.3]} 28... Rcd8 {[%clk 0:00:09.2]} 29. Bxd4
{[%clk 0:00:05.9]} 29... Qxd4 {[%clk 0:00:08.9]} 30. Nb2 {[%clk 0:00:03]} 30...
Qf6 {[%clk 0:00:09.1]} 31. Nc4 {[%clk 0:00:03.1]} 31... Nd6 {[%clk 0:00:08.6]}
32. Rxe8+ {[%clk 0:00:02.6]} 32... Rxe8 {[%clk 0:00:08.5]} 33. Nxd6 {[%clk
0:00:02.7]} 33... Qxd6 {[%clk 0:00:09.4]} 34. Bxa8 {[%clk 0:00:02.7]} 34... Rxa8
{[%clk 0:00:10.3]} 35. Qxc5 {[%clk 0:00:02.7]} 35... Qf8 {[%clk 0:00:09.8]} 36.
Qxf8+ {[%clk 0:00:02.1]} 36... Rxf8 {[%clk 0:00:10.7]} 37. Rc2 {[%clk
0:00:02.6]} 37... h6 {[%clk 0:00:10.1]} 38. Kg2 {[%clk 0:00:03.5]} 38... Kh7
{[%clk 0:00:10.2]} 39. Rc5 {[%clk 0:00:04.2]} 39... Kg6 {[%clk 0:00:09.3]} 40.
Ra5 {[%clk 0:00:05.1]} 40... Rf7 {[%clk 0:00:09.4]} 41. Ra6+ {[%clk 0:00:05.7]}
41... Kg5 {[%clk 0:00:08.9]} 42. Ra5 {[%clk 0:00:06.6]} 42... h5 {[%clk
0:00:08.8]} 43. f4+ {[%clk 0:00:07.5]} 43... Kh6 {[%clk 0:00:08.6]} 44. Kf3
{[%clk 0:00:08.4]} 44... Re7 {[%clk 0:00:07]} 45. Rxf5 {[%clk 0:00:08.3]} 45...
g6 {[%clk 0:00:06.8]} 46. Re5 {[%clk 0:00:08.6]} 46... Rd7 {[%clk 0:00:06.5]}
47. Re3 {[%clk 0:00:09.1]} 47... h4 {[%clk 0:00:06]} 48. g4 {[%clk 0:00:08.7]}
48... Rc7 {[%clk 0:00:06.1]} 49. g5+ {[%clk 0:00:08.9]} 49... Kg7 {[%clk
0:00:05.9]} 50. Re6 {[%clk 0:00:08.7]} 50... Rc2 {[%clk 0:00:05.8]} 51. Re2
{[%clk 0:00:09.1]} 51... Rc3+ {[%clk 0:00:05.8]} 52. Re3 {[%clk 0:00:09.6]}
52... Rc2 {[%clk 0:00:06]} 53. Re2 {[%clk 0:00:10]} 53... Rc3+ {[%clk
0:00:06.4]} 54. Kg4 {[%clk 0:00:10.5]} 54... h3 {[%clk 0:00:06.3]} 55. Re7+
{[%clk 0:00:09.2]} 55... Kf8 {[%clk 0:00:06.1]} 56. Rxa7 {[%clk 0:00:09.6]}
56... Ke8 {[%clk 0:00:04.5]} 57. Ra6 {[%clk 0:00:09.5]} 57... Ke7 {[%clk
0:00:04.2]} 58. Rxg6 {[%clk 0:00:09.3]} 1-0

[Event "*** Titled Tuesday Blitz"]
[Site "Chess.com"]
[Date "2020.12.01"]
[Round "1"]
[White "Elprofessor21"]
[Black "Vuk2000"]
[Result "1-0"]
[WhiteElo "2424"]
[BlackElo "2718"]
[TimeControl "180+1"]
[EndTime "10:08:17 PST"]
[Termination "Elprofessor21 won on time"]

1. d4 {[%clk 0:02:56]} 1... Nf6 {[%clk 0:02:59.9]} 2. c4 {[%clk 0:02:55.8]} 2...
e6 {[%clk 0:02:59.3]} 3. Nf3 {[%clk 0:02:55.4]} 3... b6 {[%clk 0:02:59.2]} 4. g3
{[%clk 0:02:55.2]} 4... Ba6 {[%clk 0:02:59.1]} 5. b3 {[%clk 0:02:55]} 5... Bb4+
{[%clk 0:02:58.5]} 6. Bd2 {[%clk 0:02:55.2]} 6... Be7 {[%clk 0:02:58.8]} 7. Bg2
{[%clk 0:02:55.3]} 7... Bb7 {[%clk 0:02:59.3]} 8. O-O {[%clk 0:02:52.2]} 8...
O-O {[%clk 0:02:58.9]} 9. Bf4 {[%clk 0:02:49.6]} 9... d6 {[%clk 0:02:48.9]} 10.
Qc2 {[%clk 0:02:36.3]} 10... Nbd7 {[%clk 0:02:33.6]} 11. Rd1 {[%clk 0:02:23.3]}
11... Be4 {[%clk 0:02:25.1]} 12. Qc1 {[%clk 0:02:16.4]} 12... Nh5 {[%clk
0:02:22.4]} 13. Be3 {[%clk 0:02:06.8]} 13... f5 {[%clk 0:02:21]} 14. Nc3 {[%clk
0:02:05.2]} 14... Bb7 {[%clk 0:02:10.9]} 15. Ng5 {[%clk 0:01:48.1]} 15... Bxg5
{[%clk 0:02:09.9]} 16. Bxb7 {[%clk 0:01:42]} 16... f4 {[%clk 0:01:51.5]} 17. Bd2
{[%clk 0:01:08.4]} 17... Rb8 {[%clk 0:01:32.3]} 18. Bf3 {[%clk 0:01:06.2]} 18...
Ndf6 {[%clk 0:00:59.7]} 19. g4 {[%clk 0:01:00.9]} 19... e5 {[%clk 0:00:50.9]}
20. dxe5 {[%clk 0:00:55.2]} 20... dxe5 {[%clk 0:00:51.8]} 21. gxh5 {[%clk
0:00:52.9]} 21... Qe8 {[%clk 0:00:35.1]} 22. Kh1 {[%clk 0:00:52.1]} 22... e4
{[%clk 0:00:29.9]} 23. Bg2 {[%clk 0:00:44.5]} 23... e3 {[%clk 0:00:14.8]} 24.
fxe3 {[%clk 0:00:19.6]} 24... fxe3 {[%clk 0:00:15.7]} 25. Be1 {[%clk 0:00:19.4]}
25... Qxh5 {[%clk 0:00:09.3]} 26. Bg3 {[%clk 0:00:19.1]} 26... Ng4 {[%clk
0:00:10]} 27. Rd5 {[%clk 0:00:15.6]} 27... c6 {[%clk 0:00:08.5]} 28. Rxg5 {[%clk
0:00:11.1]} 28... Qxg5 {[%clk 0:00:08.2]} 29. Ne4 {[%clk 0:00:11.3]} 29... Qh6
{[%clk 0:00:04.9]} 30. Bf3 {[%clk 0:00:08.6]} 30... Nf2+ {[%clk 0:00:04.5]} 31.
Nxf2 {[%clk 0:00:08.8]} 31... exf2 {[%clk 0:00:04]} 32. Qxh6 {[%clk 0:00:09.3]}
32... gxh6 {[%clk 0:00:04.1]} 33. Bxf2 {[%clk 0:00:09.5]} 33... Rbd8 {[%clk
0:00:04]} 34. Rg1+ {[%clk 0:00:09.4]} 34... Kf7 {[%clk 0:00:04.3]} 35. Be3
{[%clk 0:00:07.9]} 35... Rd6 {[%clk 0:00:04.4]} 36. Bf4 {[%clk 0:00:07.5]} 36...
Re6 {[%clk 0:00:04.7]} 37. e3 {[%clk 0:00:06.5]} 37... Rd8 {[%clk 0:00:04.1]}
38. Bh5+ {[%clk 0:00:05.6]} 38... Kf8 {[%clk 0:00:03.9]} 39. Bg4 {[%clk
0:00:04.5]} 39... Rf6 {[%clk 0:00:04]} 40. Be5 {[%clk 0:00:04.2]} 40... Rf2
{[%clk 0:00:04.2]} 41. Bg3 {[%clk 0:00:04.2]} 41... Rf7 {[%clk 0:00:03.5]} 42.
Be6 {[%clk 0:00:03.5]} 42... Rg7 {[%clk 0:00:03.8]} 43. Bh3 {[%clk 0:00:03.8]}
43... Rf7 {[%clk 0:00:03.7]} 44. Rf1 {[%clk 0:00:04.6]} 44... Re8 {[%clk
0:00:04.1]} 45. Rxf7+ {[%clk 0:00:04.6]} 45... Kxf7 {[%clk 0:00:05]} 46. Bf4
{[%clk 0:00:05.5]} 46... Re4 {[%clk 0:00:05.4]} 47. Kg2 {[%clk 0:00:05.4]} 47...
Kf6 {[%clk 0:00:05.6]} 48. Kf3 {[%clk 0:00:06]} 48... Re7 {[%clk 0:00:06]} 49.
e4 {[%clk 0:00:05.8]} 49... h5 {[%clk 0:00:05.9]} 50. e5+ {[%clk 0:00:06.2]}
50... Kg6 {[%clk 0:00:05.7]} 51. Ke4 {[%clk 0:00:07.1]} 51... Rf7 {[%clk
0:00:06.1]} 52. e6 {[%clk 0:00:06.8]} 52... Rf8 {[%clk 0:00:05.4]} 53. Bd6
{[%clk 0:00:05.8]} 53... Rf2 {[%clk 0:00:01.9]} 54. Ke3 {[%clk 0:00:04.6]} 1-0

[Event "*** Titled Tuesday Blitz"]
[Site "Chess.com"]
[Date "2020.12.01"]
[Round "1"]
[White "Gerodot71"]
[Black "zurzan"]
[Result "1-0"]
[WhiteElo "2482"]
[BlackElo "2073"]
[TimeControl "180+1"]
[EndTime "10:08:17 PST"]
[Termination "Gerodot71 won on time"]

1. d4 {[%clk 0:02:59.2]} 1... d6 {[%clk 0:02:59.4]} 2. e4 {[%clk 0:02:58]} 2...
Nf6 {[%clk 0:02:57.8]} 3. Nc3 {[%clk 0:02:58]} 3... g6 {[%clk 0:02:57.6]} 4. g3
{[%clk 0:02:57.7]} 4... Bg7 {[%clk 0:02:57]} 5. Bg2 {[%clk 0:02:55.6]} 5... O-O
{[%clk 0:02:57.9]} 6. Nge2 {[%clk 0:02:54.7]} 6... c6 {[%clk 0:02:56.2]} 7. a4
{[%clk 0:02:52.2]} 7... a5 {[%clk 0:02:55.4]} 8. O-O {[%clk 0:02:51.5]} 8... e5
{[%clk 0:02:53.2]} 9. h3 {[%clk 0:02:48.3]} 9... Re8 {[%clk 0:02:43.6]} 10. Be3
{[%clk 0:02:46.5]} 10... Be6 {[%clk 0:02:39.8]} 11. Qd2 {[%clk 0:02:42.4]} 11...
Nbd7 {[%clk 0:02:37.8]} 12. g4 {[%clk 0:02:31.1]} 12... Bc4 {[%clk 0:02:20.2]}
13. Rfe1 {[%clk 0:02:26.3]} 13... Bxe2 {[%clk 0:02:19.7]} 14. Rxe2 {[%clk
0:02:22.8]} 14... Qc7 {[%clk 0:02:15.9]} 15. Rd1 {[%clk 0:02:18.3]} 15... Rad8
{[%clk 0:02:15.1]} 16. d5 {[%clk 0:02:14.1]} 16... Nb8 {[%clk 0:01:50.4]} 17.
Rc1 {[%clk 0:02:05.7]} 17... Na6 {[%clk 0:01:49.6]} 18. g5 {[%clk 0:02:02.6]}
18... Nh5 {[%clk 0:01:48.2]} 19. Ree1 {[%clk 0:01:58.8]} 19... Nb4 {[%clk
0:01:47.4]} 20. Ne2 {[%clk 0:01:47.9]} 20... cxd5 {[%clk 0:01:45.2]} 21. exd5
{[%clk 0:01:47.7]} 21... f5 {[%clk 0:01:36.8]} 22. gxf6 {[%clk 0:01:44.6]} 22...
Nxf6 {[%clk 0:01:36]} 23. c3 {[%clk 0:01:44]} 23... Na6 {[%clk 0:01:35.5]} 24.
Ng3 {[%clk 0:01:43]} 24... Nc5 {[%clk 0:01:32.6]} 25. Qc2 {[%clk 0:01:43]} 25...
e4 {[%clk 0:01:29.3]} 26. Bxc5 {[%clk 0:01:31]} 26... Qxc5 {[%clk 0:01:29.1]}
27. Nxe4 {[%clk 0:01:28.7]} 27... Nxe4 {[%clk 0:01:23]} 28. Rxe4 {[%clk
0:01:28]} 28... Rxe4 {[%clk 0:01:19.7]} 29. Qxe4 {[%clk 0:01:28.8]} 29... Rf8
{[%clk 0:01:17]} 30. Rc2 {[%clk 0:01:20.4]} 30... Qc7 {[%clk 0:01:04.9]} 31. Re2
{[%clk 0:01:13.4]} 31... Qc5 {[%clk 0:00:59.1]} 32. Qe6+ {[%clk 0:01:09.5]}
32... Kh8 {[%clk 0:00:58.6]} 33. Re3 {[%clk 0:01:10.2]} 33... Qb6 {[%clk
0:00:33]} 34. Rf3 {[%clk 0:00:56.6]} 34... Qd8 {[%clk 0:00:33]} 35. Rf7 {[%clk
0:00:51.7]} 35... Rxf7 {[%clk 0:00:32.3]} 36. Qxf7 {[%clk 0:00:52.6]} 36... b6
{[%clk 0:00:18.1]} 37. h4 {[%clk 0:00:38.8]} 37... Bf6 {[%clk 0:00:17.3]} 38. h5
{[%clk 0:00:37.8]} 38... gxh5 {[%clk 0:00:17]} 39. Qxh5 {[%clk 0:00:36.7]} 39...
Qg8 {[%clk 0:00:13.8]} 40. Kf1 {[%clk 0:00:35.4]} 40... Be5 {[%clk 0:00:12.7]}
41. Be4 {[%clk 0:00:34.4]} 41... Qg7 {[%clk 0:00:12.5]} 42. Ke2 {[%clk
0:00:30.6]} 42... h6 {[%clk 0:00:11.9]} 43. Kd3 {[%clk 0:00:29.4]} 43... Kg8
{[%clk 0:00:10.9]} 44. f3 {[%clk 0:00:26.4]} 44... Kf8 {[%clk 0:00:10.9]} 45.
Qf5+ {[%clk 0:00:20]} 45... Ke7 {[%clk 0:00:10.4]} 46. Kc4 {[%clk 0:00:19.7]}
46... Kd8 {[%clk 0:00:09.8]} 47. Kb5 {[%clk 0:00:19.9]} 47... Kc7 {[%clk
0:00:09.7]} 48. Ka6 {[%clk 0:00:19]} 48... Qe7 {[%clk 0:00:07.1]} 49. Qe6 {[%clk
0:00:17.1]} 49... Qxe6 {[%clk 0:00:06.4]} 50. dxe6 {[%clk 0:00:18]} 50... Bf6
{[%clk 0:00:06.7]} 51. Bf5 {[%clk 0:00:17.6]} 51... h5 {[%clk 0:00:06.5]} 52.
Bh3 {[%clk 0:00:16.9]} 52... h4 {[%clk 0:00:06.7]} 53. f4 {[%clk 0:00:17]} 53...
Kc6 {[%clk 0:00:05.5]} 54. f5 {[%clk 0:00:16.5]} 54... Kc7 {[%clk 0:00:05.3]}
55. Kb5 {[%clk 0:00:16]} 55... Be5 {[%clk 0:00:04.3]} 56. Kc4 {[%clk 0:00:15.3]}
56... Bf6 {[%clk 0:00:04]} 57. Kd5 {[%clk 0:00:15.1]} 1-0